[Event "Titled Tuesday Blitz August 15 Early 2023"]
[White "maksimys18"]
[Black "Kuznetsov, Felix"]
[BlackFideId "34147990"]
[WhiteElo "2508"]
[BlackElo "2712"]
[Result "1-0"]
[Round "4"]
[TimeControl "180+1"]
[Date "2023.08.15"]
[WhiteClock "0:00:20"]
[BlackClock "0:00:01"]
[Board "75"]

1. d4 {[%clk 0:02:59]}  Nf6 {[%clk 0:02:59]} 2. Nf3 {[%clk 0:02:59]}  e6 {[%clk 0:03:00]} 3. c4 {[%clk 0:02:59]}  b6 {[%clk 0:02:59]} 4. Nc3 {[%clk 0:03:00]}  Bb4 {[%clk 0:02:58]} 5. Bg5 {[%clk 0:03:00]}  Bb7 {[%clk 0:02:57]} 6. e3 {[%clk 0:02:59]}  h6 {[%clk 0:02:57]} 7. Bh4 {[%clk 0:03:00]}  g5 {[%clk 0:02:58]} 8. Bg3 {[%clk 0:03:00]}  Ne4 {[%clk 0:02:58]} 9. Qc2 {[%clk 0:02:59]}  Bxc3+ {[%clk 0:02:58]} 10. bxc3 {[%clk 0:02:59]}  d6 {[%clk 0:02:59]} 11. Bd3 {[%clk 0:02:59]}  f5 {[%clk 0:02:59]} 12. d5 {[%clk 0:03:00]}  Nd7 {[%clk 0:02:54]} 13. Nd4 {[%clk 0:02:59]}  Ndc5 {[%clk 0:02:50]} 14. f3 {[%clk 0:02:47]}  Nxg3 {[%clk 0:02:47]} 15. hxg3 {[%clk 0:02:46]}  Qf6 {[%clk 0:02:35]} 16. g4 {[%clk 0:02:19]}  fxg4 {[%clk 0:02:28]} 17. Bg6+ {[%clk 0:02:18]}  Ke7 {[%clk 0:02:27]} 18. O-O-O {[%clk 0:02:16]}  e5 {[%clk 0:02:12]} 19. Nf5+ {[%clk 0:02:14]}  Kd7 {[%clk 0:02:12]} 20. Bh5 {[%clk 0:02:13]}  gxf3 {[%clk 0:02:09]} 21. gxf3 {[%clk 0:02:10]}  Raf8 {[%clk 0:02:04]} 22. Bg4 {[%clk 0:02:07]}  Kd8 {[%clk 0:02:04]} 23. e4 {[%clk 0:01:53]}  Bc8 {[%clk 0:02:01]} 24. Rh5 {[%clk 0:01:52]}  Bxf5 {[%clk 0:01:30]} 25. Bxf5 {[%clk 0:01:49]}  a5 {[%clk 0:00:54]} 26. Rdh1 {[%clk 0:01:48]}  Qg7 {[%clk 0:00:52]} 27. Kb1 {[%clk 0:01:44]}  Rf6 {[%clk 0:00:44]} 28. Bg4 {[%clk 0:01:36]}  Rf4 {[%clk 0:00:43]} 29. Qh2 {[%clk 0:01:35]}  Nxe4 {[%clk 0:00:33]} 30. Rxh6 {[%clk 0:01:27]}  Rxh6 {[%clk 0:00:32]} 31. Qxh6 {[%clk 0:01:27]}  Qxh6 {[%clk 0:00:33]} 32. Rxh6 {[%clk 0:01:27]}  Nxc3+ {[%clk 0:00:20]} 33. Kc2 {[%clk 0:01:24]}  Rxc4 {[%clk 0:00:20]} 34. Kd3 {[%clk 0:01:22]}  Rc5 {[%clk 0:00:21]} 35. Rh8+ {[%clk 0:01:19]}  Ke7 {[%clk 0:00:21]} 36. Rh7+ {[%clk 0:01:18]}  Kf6 {[%clk 0:00:21]} 37. Bh5 {[%clk 0:01:07]}  Nxd5 {[%clk 0:00:20]} 38. Ke4 {[%clk 0:01:01]}  Nf4 {[%clk 0:00:16]} 39. Be8 {[%clk 0:00:53]}  Rc3 {[%clk 0:00:12]} 40. Rh6+ {[%clk 0:00:46]}  Kg7 {[%clk 0:00:11]} 41. Rh2 {[%clk 0:00:43]}  Kf8 {[%clk 0:00:10]} 42. Bd7 {[%clk 0:00:40]}  Ke7 {[%clk 0:00:10]} 43. Rh7+ {[%clk 0:00:38]}  Kf6 {[%clk 0:00:10]} 44. Rh6+ {[%clk 0:00:38]}  Ng6 {[%clk 0:00:11]} 45. Be8 {[%clk 0:00:36]}  c6 {[%clk 0:00:08]} 46. Rxg6+ {[%clk 0:00:33]}  Ke7 {[%clk 0:00:09]} 47. Rg8 {[%clk 0:00:33]}  Rc4+ {[%clk 0:00:07]} 48. Kd3 {[%clk 0:00:31]}  Ra4 {[%clk 0:00:06]} 49. Bxc6 {[%clk 0:00:30]}  Rxa2 {[%clk 0:00:06]} 50. Rxg5 {[%clk 0:00:29]}  a4 {[%clk 0:00:05]} 51. Kc3 {[%clk 0:00:29]}  Ra1 {[%clk 0:00:04]} 52. Kb2 {[%clk 0:00:28]}  Rf1 {[%clk 0:00:03]} 53. Rg7+ {[%clk 0:00:28]}  Kf6 {[%clk 0:00:04]} 54. Rb7 {[%clk 0:00:28]}  Kf5 {[%clk 0:00:04]} 55. Rxb6 {[%clk 0:00:26]}  Kf4 {[%clk 0:00:04]} 56. Rb8 {[%clk 0:00:25]}  Ke3 {[%clk 0:00:04]} 57. Rd8 {[%clk 0:00:23]}  Rd1 {[%clk 0:00:04]} 58. Bxa4 {[%clk 0:00:20]}  Kxf3 {[%clk 0:00:01]} 59. Bxd1+ {[%clk 0:00:20]} 1-0


[Site "https://www.chess.com"]

[Event "Titled Tuesday Blitz August 15 Early 2023"]
[White "Starozhilov, Leonid"]
[Black "Yashmetov, Mikhail"]
[WhiteFideId "14106752"]
[BlackFideId "24198900"]
[WhiteElo "2711"]
[BlackElo "2488"]
[Result "1/2-1/2"]
[Round "4"]
[TimeControl "180+1"]
[Date "2023.08.15"]
[WhiteClock "0:00:06"]
[BlackClock "0:00:03"]
[Board "76"]

1. e4 {[%clk 0:02:57]}  c5 {[%clk 0:02:59]} 2. Nf3 {[%clk 0:02:57]}  Nc6 {[%clk 0:03:00]} 3. Nc3 {[%clk 0:02:56]}  e5 {[%clk 0:03:00]} 4. Bc4 {[%clk 0:02:56]}  d6 {[%clk 0:02:58]} 5. d3 {[%clk 0:02:56]}  Be7 {[%clk 0:02:59]} 6. Ng5 {[%clk 0:02:52]}  Bxg5 {[%clk 0:02:21]} 7. Qh5 {[%clk 0:02:51]}  g6 {[%clk 0:02:16]} 8. Qxg5 {[%clk 0:02:51]}  Qxg5 {[%clk 0:02:15]} 9. Bxg5 {[%clk 0:02:51]}  Be6 {[%clk 0:02:06]} 10. Nd5 {[%clk 0:02:43]}  Kd7 {[%clk 0:02:04]} 11. c3 {[%clk 0:02:38]}  Rb8 {[%clk 0:01:51]} 12. a4 {[%clk 0:02:37]}  Nce7 {[%clk 0:01:46]} 13. Bb5+ {[%clk 0:02:28]}  Nc6 {[%clk 0:01:46]} 14. b4 {[%clk 0:02:16]}  a6 {[%clk 0:01:18]} 15. Bc4 {[%clk 0:02:09]}  b5 {[%clk 0:01:03]} 16. axb5 {[%clk 0:02:06]}  axb5 {[%clk 0:01:04]} 17. Bb3 {[%clk 0:01:59]}  cxb4 {[%clk 0:00:57]} 18. cxb4 {[%clk 0:02:00]}  Rb7 {[%clk 0:00:21]} 19. Be3 {[%clk 0:01:29]}  Nxb4 {[%clk 0:00:12]} 20. Nxb4 {[%clk 0:01:21]}  Bxb3 {[%clk 0:00:12]} 21. Kd2 {[%clk 0:01:21]}  Ne7 {[%clk 0:00:10]} 22. Rhb1 {[%clk 0:01:20]}  Be6 {[%clk 0:00:11]} 23. Ra6 {[%clk 0:01:08]}  Rc8 {[%clk 0:00:09]} 24. Rba1 {[%clk 0:01:08]}  Nc6 {[%clk 0:00:07]} 25. Rb1 {[%clk 0:01:00]}  Nxb4 {[%clk 0:00:07]} 26. Rxb4 {[%clk 0:01:01]}  Rcb8 {[%clk 0:00:04]} 27. f4 {[%clk 0:00:58]}  exf4 {[%clk 0:00:04]} 28. Bxf4 {[%clk 0:00:58]}  Rb6 {[%clk 0:00:04]} 29. Ra7+ {[%clk 0:00:55]}  R8b7 {[%clk 0:00:04]} 30. Ra8 {[%clk 0:00:56]}  Rb8 {[%clk 0:00:04]} 31. Ra5 {[%clk 0:00:56]}  R8b7 {[%clk 0:00:04]} 32. Be3 {[%clk 0:00:55]}  Rc6 {[%clk 0:00:03]} 33. Rbxb5 {[%clk 0:00:56]}  Rxb5 {[%clk 0:00:04]} 34. Rxb5 {[%clk 0:00:57]}  Rc7 {[%clk 0:00:04]} 35. Bf4 {[%clk 0:00:55]}  Rc6 {[%clk 0:00:05]} 36. Rb7+ {[%clk 0:00:55]}  Rc7 {[%clk 0:00:05]} 37. Rb8 {[%clk 0:00:55]}  Rc8 {[%clk 0:00:06]} 38. Rxc8 {[%clk 0:00:33]}  Kxc8 {[%clk 0:00:06]} 39. Bxd6 {[%clk 0:00:34]}  Kd7 {[%clk 0:00:07]} 40. Be5 {[%clk 0:00:33]}  f5 {[%clk 0:00:07]} 41. Ke3 {[%clk 0:00:33]}  fxe4 {[%clk 0:00:07]} 42. Kxe4 {[%clk 0:00:33]}  Kc6 {[%clk 0:00:08]} 43. g3 {[%clk 0:00:31]}  Bf5+ {[%clk 0:00:07]} 44. Kd4 {[%clk 0:00:31]}  g5 {[%clk 0:00:06]} 45. Bf6 {[%clk 0:00:29]}  g4 {[%clk 0:00:06]} 46. Ke3 {[%clk 0:00:30]}  Kd5 {[%clk 0:00:06]} 47. d4 {[%clk 0:00:24]}  h5 {[%clk 0:00:06]} 48. Kf4 {[%clk 0:00:24]}  Bd7 {[%clk 0:00:07]} 49. Be5 {[%clk 0:00:22]}  Be8 {[%clk 0:00:07]} 50. Kg5 {[%clk 0:00:23]}  Ke6 {[%clk 0:00:07]} 51. Kh6 {[%clk 0:00:23]}  Bf7 {[%clk 0:00:04]} 52. Kg7 {[%clk 0:00:23]}  Be8 {[%clk 0:00:04]} 53. Kf8 {[%clk 0:00:24]}  Bg6 {[%clk 0:00:04]} 54. Bf4 {[%clk 0:00:24]}  Kd5 {[%clk 0:00:03]} 55. Kg7 {[%clk 0:00:24]}  Be8 {[%clk 0:00:04]} 56. Be3 {[%clk 0:00:23]}  Ke6 {[%clk 0:00:04]} 57. Bf2 {[%clk 0:00:22]}  Kd5 {[%clk 0:00:04]} 58. Kf6 {[%clk 0:00:23]}  Bd7 {[%clk 0:00:04]} 59. Kf7 {[%clk 0:00:22]}  Bc6 {[%clk 0:00:04]} 60. Be3 {[%clk 0:00:20]}  Bd7 {[%clk 0:00:04]} 61. Ke7 {[%clk 0:00:20]}  Bc6 {[%clk 0:00:04]} 62. Kf6 {[%clk 0:00:19]}  Bd7 {[%clk 0:00:05]} 63. Kg5 {[%clk 0:00:18]}  Be8 {[%clk 0:00:05]} 64. Kh4 {[%clk 0:00:18]}  Bf7 {[%clk 0:00:06]} 65. Bf4 {[%clk 0:00:18]}  Be8 {[%clk 0:00:07]} 66. Be5 {[%clk 0:00:18]}  Bf7 {[%clk 0:00:07]} 67. h3 {[%clk 0:00:19]}  Be8 {[%clk 0:00:08]} 68. hxg4 {[%clk 0:00:19]}  hxg4 {[%clk 0:00:09]} 69. Kxg4 {[%clk 0:00:20]}  Ke6 {[%clk 0:00:07]} 70. Kg5 {[%clk 0:00:20]}  Bf7 {[%clk 0:00:03]} 71. Kh6 {[%clk 0:00:21]}  Kf5 {[%clk 0:00:04]} 72. Kg7 {[%clk 0:00:19]}  Bd5 {[%clk 0:00:03]} 73. Kf8 {[%clk 0:00:20]}  Ke4 {[%clk 0:00:02]} 74. Ke7 {[%clk 0:00:21]}  Bc4 {[%clk 0:00:02]} 75. Kd6 {[%clk 0:00:21]}  Bg8 {[%clk 0:00:02]} 76. Kc5 {[%clk 0:00:21]}  Kf5 {[%clk 0:00:02]} 77. Bf4 {[%clk 0:00:20]}  Ke4 {[%clk 0:00:02]} 78. Bd2 {[%clk 0:00:19]}  Bf7 {[%clk 0:00:03]} 79. g4 {[%clk 0:00:18]}  Be6 {[%clk 0:00:02]} 80. g5 {[%clk 0:00:18]}  Bf7 {[%clk 0:00:02]} 81. Ba5 {[%clk 0:00:15]}  Kf5 {[%clk 0:00:02]} 82. Bd8 {[%clk 0:00:16]}  Ke4 {[%clk 0:00:03]} 83. Bf6 {[%clk 0:00:15]}  Bd5 {[%clk 0:00:02]} 84. g6 {[%clk 0:00:13]}  Bg8 {[%clk 0:00:02]} 85. g7 {[%clk 0:00:13]}  Kf5 {[%clk 0:00:03]} 86. Be5 {[%clk 0:00:13]}  Ke6 {[%clk 0:00:03]} 87. Kc6 {[%clk 0:00:12]}  Kf5 {[%clk 0:00:02]} 88. Kd7 {[%clk 0:00:12]}  Kg6 {[%clk 0:00:02]} 89. Ke7 {[%clk 0:00:13]}  Bf7 {[%clk 0:00:02]} 90. Kd6 {[%clk 0:00:09]}  Bg8 {[%clk 0:00:02]} 91. d5 {[%clk 0:00:09]}  Kf5 {[%clk 0:00:02]} 92. Bb2 {[%clk 0:00:09]}  Ke4 {[%clk 0:00:02]} 93. Kd7 {[%clk 0:00:06]}  Bxd5 {[%clk 0:00:03]} 94. g8=Q {[%clk 0:00:06]}  Bxg8 {[%clk 0:00:03]} 1/2-1/2


[Site "https://www.chess.com"]

[Event "Titled Tuesday Blitz August 15 Early 2023"]
[White "Pinero Rodriguez, Carlos Jose"]
[Black "Priasmoro, Novendra"]
[WhiteFideId "3901726"]
[BlackFideId "7105029"]
[WhiteElo "2471"]
[BlackElo "2706"]
[Result "0-1"]
[Round "4"]
[TimeControl "180+1"]
[Date "2023.08.15"]
[WhiteClock "0:00:02"]
[BlackClock "0:00:08"]
[Board "77"]

1. e4 {[%clk 0:02:49]}  c5 {[%clk 0:02:54]} 2. Nf3 {[%clk 0:02:49]}  Nc6 {[%clk 0:02:54]} 3. Bb5 {[%clk 0:02:49]}  e6 {[%clk 0:02:53]} 4. O-O {[%clk 0:02:49]}  Nge7 {[%clk 0:02:51]} 5. c3 {[%clk 0:02:48]}  a6 {[%clk 0:02:38]} 6. Bd3 {[%clk 0:02:46]}  Ng6 {[%clk 0:02:37]} 7. Bc2 {[%clk 0:02:45]}  Be7 {[%clk 0:02:37]} 8. d4 {[%clk 0:02:45]}  cxd4 {[%clk 0:02:36]} 9. cxd4 {[%clk 0:02:46]}  O-O {[%clk 0:02:34]} 10. Nc3 {[%clk 0:02:41]}  d5 {[%clk 0:02:31]} 11. e5 {[%clk 0:02:41]}  f5 {[%clk 0:02:26]} 12. exf6 {[%clk 0:02:23]}  Bxf6 {[%clk 0:02:20]} 13. Re1 {[%clk 0:02:23]}  Nge7 {[%clk 0:02:08]} 14. Bf4 {[%clk 0:01:45]}  Nf5 {[%clk 0:02:06]} 15. Bxf5 {[%clk 0:01:43]}  exf5 {[%clk 0:02:07]} 16. Ne5 {[%clk 0:01:42]}  g5 {[%clk 0:02:05]} 17. Nxc6 {[%clk 0:01:39]}  bxc6 {[%clk 0:02:05]} 18. Be5 {[%clk 0:01:39]}  f4 {[%clk 0:02:03]} 19. f3 {[%clk 0:01:16]}  Bf5 {[%clk 0:01:57]} 20. Bxf6 {[%clk 0:01:09]}  Qxf6 {[%clk 0:01:58]} 21. Qd2 {[%clk 0:01:09]}  Rfe8 {[%clk 0:01:56]} 22. Na4 {[%clk 0:01:08]}  Rab8 {[%clk 0:01:51]} 23. Nc5 {[%clk 0:01:07]}  a5 {[%clk 0:01:51]} 24. a3 {[%clk 0:00:27]}  Kf7 {[%clk 0:01:46]} 25. Rac1 {[%clk 0:00:20]}  h5 {[%clk 0:01:41]} 26. h3 {[%clk 0:00:19]}  h4 {[%clk 0:01:29]} 27. Kh2 {[%clk 0:00:18]}  Kg6 {[%clk 0:01:14]} 28. Rcd1 {[%clk 0:00:13]}  Kf7 {[%clk 0:01:11]} 29. Rxe8 {[%clk 0:00:12]}  Rxe8 {[%clk 0:01:09]} 30. Qxa5 {[%clk 0:00:12]}  Re2 {[%clk 0:01:08]} 31. Rd2 {[%clk 0:00:09]}  Re1 {[%clk 0:01:06]} 32. Qc7+ {[%clk 0:00:09]}  Kg6 {[%clk 0:01:05]} 33. a4 {[%clk 0:00:08]}  Re7 {[%clk 0:00:58]} 34. Qb8 {[%clk 0:00:08]}  Qf7 {[%clk 0:00:46]} 35. a5 {[%clk 0:00:07]}  Ra7 {[%clk 0:00:46]} 36. a6 {[%clk 0:00:06]}  Kg7 {[%clk 0:00:43]} 37. Qe5+ {[%clk 0:00:06]}  Kg6 {[%clk 0:00:43]} 38. Qd6+ {[%clk 0:00:06]}  Kh5 {[%clk 0:00:43]} 39. Re2 {[%clk 0:00:06]}  Bc8 {[%clk 0:00:40]} 40. Re5 {[%clk 0:00:04]}  Bxa6 {[%clk 0:00:37]} 41. Ne6 {[%clk 0:00:04]}  Qf6 {[%clk 0:00:32]} 42. Rxg5+ {[%clk 0:00:04]}  Kh6 {[%clk 0:00:33]} 43. Qe5 {[%clk 0:00:01]}  Qxe5 {[%clk 0:00:22]} 44. Rxe5 {[%clk 0:00:02]}  Rf7 {[%clk 0:00:20]} 45. Nc5 {[%clk 0:00:01]}  Bb5 {[%clk 0:00:20]} 46. Re1 {[%clk 0:00:02]}  Kg5 {[%clk 0:00:19]} 47. Re5+ {[%clk 0:00:03]}  Kf6 {[%clk 0:00:18]} 48. Kg1 {[%clk 0:00:04]}  Ra7 {[%clk 0:00:18]} 49. Rh5 {[%clk 0:00:04]}  Ra2 {[%clk 0:00:18]} 50. Rxh4 {[%clk 0:00:04]}  Kg5 {[%clk 0:00:18]} 51. Rg4+ {[%clk 0:00:05]}  Kf5 {[%clk 0:00:19]} 52. Nd7 {[%clk 0:00:04]}  Rxb2 {[%clk 0:00:19]} 53. Kh2 {[%clk 0:00:05]}  Be2 {[%clk 0:00:17]} 54. h4 {[%clk 0:00:05]}  Bxf3 {[%clk 0:00:18]} 55. Rg5+ {[%clk 0:00:06]}  Ke6 {[%clk 0:00:18]} 56. Nc5+ {[%clk 0:00:07]}  Kf6 {[%clk 0:00:17]} 57. Nd7+ {[%clk 0:00:07]}  Ke7 {[%clk 0:00:17]} 58. Nc5 {[%clk 0:00:07]}  Bd1 {[%clk 0:00:15]} 59. h5 {[%clk 0:00:07]}  f3 {[%clk 0:00:15]} 60. Kg1 {[%clk 0:00:06]}  f2+ {[%clk 0:00:14]} 61. Kf1 {[%clk 0:00:06]}  Kf6 {[%clk 0:00:08]} 62. Rg3 {[%clk 0:00:06]}  Bxh5 {[%clk 0:00:07]} 63. Nd3 {[%clk 0:00:05]}  Be2+ {[%clk 0:00:07]} 64. Kxf2 {[%clk 0:00:05]}  Bxd3+ {[%clk 0:00:08]} 65. Ke3 {[%clk 0:00:02]}  Be4 {[%clk 0:00:08]} 0-1


[Site "https://www.chess.com"]

[Event "Titled Tuesday Blitz August 15 Early 2023"]
[White "Matinian, Nikita"]
[Black "Herman, Daniel"]
[WhiteFideId "24129100"]
[BlackFideId "30935008"]
[WhiteElo "2690"]
[BlackElo "2441"]
[Result "1-0"]
[Round "4"]
[TimeControl "180+1"]
[Date "2023.08.15"]
[WhiteClock "0:02:08"]
[BlackClock "0:00:29"]
[Board "82"]

1. e4 {[%clk 0:03:00]}  g6 {[%clk 0:02:56]} 2. d4 {[%clk 0:03:00]}  Bg7 {[%clk 0:02:57]} 3. Nc3 {[%clk 0:03:01]}  d6 {[%clk 0:02:57]} 4. f4 {[%clk 0:03:02]}  Nf6 {[%clk 0:02:56]} 5. Nf3 {[%clk 0:03:02]}  O-O {[%clk 0:02:50]} 6. e5 {[%clk 0:03:02]}  Nfd7 {[%clk 0:02:33]} 7. Bc4 {[%clk 0:03:02]}  e6 {[%clk 0:02:29]} 8. Be3 {[%clk 0:03:01]}  b6 {[%clk 0:02:27]} 9. h4 {[%clk 0:03:01]}  Bb7 {[%clk 0:02:19]} 10. h5 {[%clk 0:03:01]}  c5 {[%clk 0:02:15]} 11. hxg6 {[%clk 0:03:01]}  hxg6 {[%clk 0:02:14]} 12. Ng5 {[%clk 0:03:01]}  Qe7 {[%clk 0:01:54]} 13. Qg4 {[%clk 0:02:57]}  Re8 {[%clk 0:01:44]} 14. Rh4 {[%clk 0:02:17]}  Kf8 {[%clk 0:00:39]} 15. Qh3 {[%clk 0:02:15]}  Qd8 {[%clk 0:00:36]} 16. exd6 {[%clk 0:02:09]}  Nf6 {[%clk 0:00:34]} 17. Rh8+ {[%clk 0:02:07]}  Bxh8 {[%clk 0:00:28]} 18. Qxh8+ {[%clk 0:02:08]}  Ng8 {[%clk 0:00:29]} 19. Nh7# {[%clk 0:02:08]} 1-0


[Site "https://www.chess.com"]

[Event "Titled Tuesday Blitz August 15 Early 2023"]
[White "Huschenbeth, Niclas"]
[Black "Bueno, Alfeu Junior Varela"]
[WhiteFideId "24604747"]
[BlackFideId "2108879"]
[WhiteElo "2682"]
[BlackElo "2435"]
[Result "0-1"]
[Round "4"]
[TimeControl "180+1"]
[Date "2023.08.15"]
[WhiteClock "0:01:05"]
[BlackClock "0:01:26"]
[Board "84"]

1. e4 {[%clk 0:03:00]}  e6 {[%clk 0:02:59]} 2. d4 {[%clk 0:03:00]}  d5 {[%clk 0:03:00]} 3. Nc3 {[%clk 0:03:01]}  Nf6 {[%clk 0:03:00]} 4. Bg5 {[%clk 0:03:00]}  Be7 {[%clk 0:03:01]} 5. e5 {[%clk 0:03:00]}  Nfd7 {[%clk 0:03:01]} 6. h4 {[%clk 0:03:01]}  O-O {[%clk 0:03:02]} 7. f4 {[%clk 0:02:52]}  c5 {[%clk 0:02:59]} 8. Nf3 {[%clk 0:02:47]}  Nc6 {[%clk 0:02:58]} 9. Bxe7 {[%clk 0:02:41]}  Qxe7 {[%clk 0:02:58]} 10. Ne2 {[%clk 0:02:38]}  cxd4 {[%clk 0:02:56]} 11. Qd2 {[%clk 0:02:32]}  f6 {[%clk 0:02:54]} 12. Nexd4 {[%clk 0:02:17]}  fxe5 {[%clk 0:02:44]} 13. Nxc6 {[%clk 0:02:17]}  bxc6 {[%clk 0:02:45]} 14. fxe5 {[%clk 0:02:18]}  Rb8 {[%clk 0:02:11]} 15. O-O-O {[%clk 0:02:17]}  Nc5 {[%clk 0:01:58]} 16. Qd4 {[%clk 0:01:35]}  Rb4 {[%clk 0:01:54]} 17. Qe3 {[%clk 0:01:16]}  Na4 {[%clk 0:01:40]} 18. b3 {[%clk 0:01:16]}  Re4 {[%clk 0:01:39]} 19. Qxa7 {[%clk 0:01:05]}  Qxa7 {[%clk 0:01:26]} 0-1


[Site "https://www.chess.com"]

[Event "Titled Tuesday Blitz August 15 Early 2023"]
[White "Todorovic, Bojan"]
[Black "Papasimakopoulos, Alexandros"]
[WhiteFideId "917087"]
[BlackFideId "4244125"]
[WhiteElo "2432"]
[BlackElo "2672"]
[Result "0-1"]
[Round "4"]
[TimeControl "180+1"]
[Date "2023.08.15"]
[WhiteClock "0:00:37"]
[BlackClock "0:01:52"]
[Board "86"]

1. Nf3 {[%clk 0:02:59]}  d5 {[%clk 0:02:55]} 2. c4 {[%clk 0:02:58]}  e6 {[%clk 0:02:53]} 3. g3 {[%clk 0:02:57]}  Nf6 {[%clk 0:02:53]} 4. Bg2 {[%clk 0:02:56]}  Be7 {[%clk 0:02:53]} 5. O-O {[%clk 0:02:56]}  O-O {[%clk 0:02:54]} 6. b3 {[%clk 0:02:55]}  b6 {[%clk 0:02:53]} 7. Bb2 {[%clk 0:02:54]}  Bb7 {[%clk 0:02:53]} 8. e3 {[%clk 0:02:46]}  dxc4 {[%clk 0:02:52]} 9. bxc4 {[%clk 0:02:45]}  c5 {[%clk 0:02:52]} 10. Nc3 {[%clk 0:02:42]}  Nc6 {[%clk 0:02:49]} 11. d3 {[%clk 0:02:25]}  Nb4 {[%clk 0:02:45]} 12. Ne5 {[%clk 0:02:10]}  Bxg2 {[%clk 0:02:44]} 13. Kxg2 {[%clk 0:02:11]}  Bd6 {[%clk 0:02:44]} 14. d4 {[%clk 0:02:03]}  cxd4 {[%clk 0:02:33]} 15. exd4 {[%clk 0:02:02]}  Rc8 {[%clk 0:02:33]} 16. Nb5 {[%clk 0:01:59]}  Bb8 {[%clk 0:02:28]} 17. Qb3 {[%clk 0:01:57]}  Nc6 {[%clk 0:02:25]} 18. Rfd1 {[%clk 0:01:39]}  Na5 {[%clk 0:02:15]} 19. Qf3 {[%clk 0:01:16]}  Nxc4 {[%clk 0:02:10]} 20. Nc6 {[%clk 0:00:46]}  Qd7 {[%clk 0:02:08]} 21. Nxb8 {[%clk 0:00:37]}  Qxb5 {[%clk 0:01:52]} 0-1


[Site "https://www.chess.com"]

[Event "Titled Tuesday Blitz August 15 Early 2023"]
[White "Chyngyz, Sultai"]
[Black "Parkhov, Yair"]
[WhiteFideId "13803158"]
[BlackFideId "2813408"]
[WhiteElo "2421"]
[BlackElo "2664"]
[Result "1-0"]
[Round "4"]
[TimeControl "180+1"]
[Date "2023.08.15"]
[WhiteClock "0:00:17"]
[BlackClock "0:00:04"]
[Board "88"]

1. e4 {[%clk 0:03:00]}  c5 {[%clk 0:02:55]} 2. Nf3 {[%clk 0:03:00]}  Nc6 {[%clk 0:02:52]} 3. Bb5 {[%clk 0:03:00]}  Nf6 {[%clk 0:02:37]} 4. Bxc6 {[%clk 0:02:59]}  bxc6 {[%clk 0:02:36]} 5. d3 {[%clk 0:03:00]}  g6 {[%clk 0:02:32]} 6. O-O {[%clk 0:02:59]}  Bg7 {[%clk 0:02:32]} 7. Nc3 {[%clk 0:02:59]}  O-O {[%clk 0:02:23]} 8. h3 {[%clk 0:02:58]}  d6 {[%clk 0:02:21]} 9. e5 {[%clk 0:02:57]}  Nd7 {[%clk 0:02:15]} 10. exd6 {[%clk 0:02:56]}  exd6 {[%clk 0:02:16]} 11. Ne4 {[%clk 0:02:56]}  d5 {[%clk 0:02:11]} 12. Ng3 {[%clk 0:02:54]}  Re8 {[%clk 0:02:03]} 13. c3 {[%clk 0:02:53]}  Ba6 {[%clk 0:01:58]} 14. Qc2 {[%clk 0:02:46]}  Qb6 {[%clk 0:01:54]} 15. Rb1 {[%clk 0:02:42]}  Nf8 {[%clk 0:01:46]} 16. Be3 {[%clk 0:02:41]}  Ne6 {[%clk 0:01:22]} 17. Rfd1 {[%clk 0:02:24]}  Rad8 {[%clk 0:01:17]} 18. Kh2 {[%clk 0:01:53]}  Qb8 {[%clk 0:01:14]} 19. d4 {[%clk 0:01:44]}  c4 {[%clk 0:01:09]} 20. b3 {[%clk 0:01:35]}  cxb3 {[%clk 0:01:09]} 21. Rxb3 {[%clk 0:01:35]}  Qc7 {[%clk 0:01:07]} 22. Rdb1 {[%clk 0:01:35]}  h5 {[%clk 0:01:05]} 23. h4 {[%clk 0:01:31]}  Nf4 {[%clk 0:01:02]} 24. Qd2 {[%clk 0:01:29]}  Nd3 {[%clk 0:00:57]} 25. Bh6 {[%clk 0:01:25]}  Bxh6 {[%clk 0:00:54]} 26. Qxh6 {[%clk 0:01:26]}  Nxf2 {[%clk 0:00:54]} 27. Qg5 {[%clk 0:01:10]}  Ng4+ {[%clk 0:00:51]} 28. Kh3 {[%clk 0:01:09]}  Bd3 {[%clk 0:00:48]} 29. Rb7 {[%clk 0:01:04]}  Qd6 {[%clk 0:00:43]} 30. R1b2 {[%clk 0:00:53]}  Rd7 {[%clk 0:00:19]} 31. Rxd7 {[%clk 0:00:45]}  Qxd7 {[%clk 0:00:18]} 32. Nxh5 {[%clk 0:00:41]}  Nf6+ {[%clk 0:00:12]} 33. g4 {[%clk 0:00:40]}  Nxh5 {[%clk 0:00:12]} 34. Ne5 {[%clk 0:00:38]}  Qe6 {[%clk 0:00:12]} 35. Rb7 {[%clk 0:00:31]}  Ng7 {[%clk 0:00:07]} 36. Qf4 {[%clk 0:00:21]}  Rf8 {[%clk 0:00:05]} 37. Nd7 {[%clk 0:00:16]}  Qe2 {[%clk 0:00:04]} 38. Nf6+ {[%clk 0:00:16]}  Kh8 {[%clk 0:00:04]} 39. Qh6# {[%clk 0:00:17]} 1-0


[Site "https://www.chess.com"]

[Event "Titled Tuesday Blitz August 15 Early 2023"]
[White "Smiechu"]
[Black "Iskusnyh, Sergei"]
[BlackFideId "4120027"]
[WhiteElo "2388"]
[BlackElo "2648"]
[Result "1-0"]
[Round "4"]
[TimeControl "180+1"]
[Date "2023.08.15"]
[WhiteClock "0:00:10"]
[BlackClock "0:00:00"]
[Board "90"]

1. e4 {[%clk 0:03:00]}  e6 {[%clk 0:02:59]} 2. d4 {[%clk 0:03:00]}  d5 {[%clk 0:02:59]} 3. Bd3 {[%clk 0:03:01]}  c5 {[%clk 0:02:58]} 4. exd5 {[%clk 0:02:46]}  exd5 {[%clk 0:02:56]} 5. Nf3 {[%clk 0:02:46]}  Nf6 {[%clk 0:02:53]} 6. O-O {[%clk 0:02:46]}  Nc6 {[%clk 0:02:52]} 7. Re1+ {[%clk 0:02:45]}  Be7 {[%clk 0:02:52]} 8. dxc5 {[%clk 0:02:45]}  O-O {[%clk 0:02:51]} 9. Be3 {[%clk 0:02:44]}  Ng4 {[%clk 0:02:50]} 10. Nc3 {[%clk 0:02:26]}  Nxe3 {[%clk 0:02:45]} 11. fxe3 {[%clk 0:02:26]}  Be6 {[%clk 0:02:31]} 12. Nd4 {[%clk 0:02:17]}  g6 {[%clk 0:01:59]} 13. Nxe6 {[%clk 0:02:11]}  fxe6 {[%clk 0:02:00]} 14. Qg4 {[%clk 0:02:11]}  Rf6 {[%clk 0:01:56]} 15. e4 {[%clk 0:02:01]}  Bxc5+ {[%clk 0:01:48]} 16. Kh1 {[%clk 0:02:01]}  d4 {[%clk 0:01:39]} 17. e5 {[%clk 0:01:52]}  Rf7 {[%clk 0:00:56]} 18. Ne4 {[%clk 0:01:34]}  Nxe5 {[%clk 0:00:51]} 19. Qg3 {[%clk 0:01:27]}  Nxd3 {[%clk 0:00:45]} 20. cxd3 {[%clk 0:01:27]}  Bb4 {[%clk 0:00:41]} 21. Rf1 {[%clk 0:01:20]}  Qf8 {[%clk 0:00:35]} 22. Kg1 {[%clk 0:01:04]}  Rf5 {[%clk 0:00:29]} 23. Qh4 {[%clk 0:00:50]}  Be7 {[%clk 0:00:28]} 24. Qg3 {[%clk 0:00:34]}  Rc8 {[%clk 0:00:27]} 25. Rac1 {[%clk 0:00:28]}  Rxc1 {[%clk 0:00:25]} 26. Rxc1 {[%clk 0:00:28]}  Kg7 {[%clk 0:00:17]} 27. h3 {[%clk 0:00:28]}  Bd8 {[%clk 0:00:16]} 28. Qb8 {[%clk 0:00:26]}  Bb6 {[%clk 0:00:14]} 29. Rc8 {[%clk 0:00:22]}  Qe7 {[%clk 0:00:13]} 30. Rg8+ {[%clk 0:00:21]}  Kh6 {[%clk 0:00:13]} 31. Qg3 {[%clk 0:00:20]}  Bc7 {[%clk 0:00:09]} 32. Qe1 {[%clk 0:00:19]}  Qf7 {[%clk 0:00:08]} 33. Rc8 {[%clk 0:00:17]}  Rf1+ {[%clk 0:00:09]} 34. Qxf1 {[%clk 0:00:16]}  Bh2+ {[%clk 0:00:09]} 35. Kxh2 {[%clk 0:00:16]}  Qxf1 {[%clk 0:00:10]} 36. Rc7 {[%clk 0:00:15]}  Qe2 {[%clk 0:00:09]} 37. h4 {[%clk 0:00:15]}  g5 {[%clk 0:00:08]} 38. Nxg5 {[%clk 0:00:15]}  Qxd3 {[%clk 0:00:08]} 39. Re7 {[%clk 0:00:13]}  Kg6 {[%clk 0:00:05]} 40. Rxe6+ {[%clk 0:00:13]}  Kf5 {[%clk 0:00:05]} 41. Re7 {[%clk 0:00:13]}  Kg4 {[%clk 0:00:05]} 42. Nf3 {[%clk 0:00:12]}  Qd1 {[%clk 0:00:04]} 43. Rg7+ {[%clk 0:00:10]}  Kf4 {[%clk 0:00:03]} 44. Rxh7 {[%clk 0:00:11]}  d3 {[%clk 0:00:03]} 45. Rd7 {[%clk 0:00:11]}  Qb1 {[%clk 0:00:02]} 46. h5 {[%clk 0:00:10]}  Ke4 {[%clk 0:00:01]} 47. h6 {[%clk 0:00:10]}  Qxb2 {[%clk 0:00:00]} 48. h7 {[%clk 0:00:10]} 1-0


[Site "https://www.chess.com"]